[Event "World Senior chT-50 2019"]
[Site "Rhodes"]
[Date "2019.04.24"]
[Round "9.19"]
[White "Druckenthaner, Andreas"]
[Black "Salonen, Jyrki"]
[Result "1-0"]
[ECO "B06"]
[WhiteElo "2304"]
[BlackElo "2162"]
[Annotator "NA"]
[PlyCount "81"]
[EventDate "2019.04.16"]
[EventType "team-tourn"]
[EventCountry "GRE"]
[SourceTitle "playchess.com"]
[Source "ChessBase"]
[SourceQuality "1"]
[WhiteTeam "Austria"]
[BlackTeam "Finland"]
[WhiteTeamCountry "AUT"]
[BlackTeamCountry "FIN"]
[TimeControl "40/5400+30:1800+30"]

1. e4 {[%emt 0:00:00]} d6 {[%emt 0:00:03]} 2. d4 {[%emt 0:00:00]} g6 {[%emt 0:00:44]} 3. Nf3 {[%emt 0:00:28]} c6 {[%emt 0:00:55]} 4. Bc4 {[%emt 0:01:43]} d5 {[%emt 0:01:02]} 5. Bb3 {[%emt 0:00:37]} Bg4 {[%emt 0:07:12]} 6. h3 {[%emt 0:04:54]} Bxf3 {[%emt 0:00:16]} 7. Qxf3 {[%emt 0:00:09]} e6 {[%emt 0:05:22]} 8. Nd2 {[%emt 0:01:31]} Bg7 {[%emt 0:01:02]} 9. c3 {[%emt 0:00:19]} Ne7 {[%emt 0:02:27]} 10. O-O {[%emt 0:00:53]} O-O {[%emt 0:00:36]} 11. Re1 {[%emt 0:05:18]} Nd7 {[%emt 0:06:43]} 12. exd5 {[%emt 0:04:34]} cxd5 {[%emt 0:02:41]} 13. Nf1 {[%emt 0:00:11]} Nc6 {[%emt 0:03:31]} 14. Nh2 {[%emt 0:01:35]} Qe7 {[%emt 0:14:30]} 15. Bxd5 {[%emt 0:02:35]} exd5 {[%emt 0:03:39]} 16. Rxe7 {[%emt 0:00:08]} Nxe7 {[%emt 0:00:05]} 17. Bf4 {[%emt 0:02:40]} Rfe8 {[%emt 0:02:55]} 18. Ng4 {[%emt 0:03:44]} h5 {[%emt 0:03:19]} 19. Ne3 {[%emt 0:02:24]} Nb6 {[%emt 0:02:13]} 20. Bc7 {[%emt 0:02:54]} Bh6 {[%emt 0:04:19]} 21. Bxb6 {[%emt 0:02:40]} Bxe3 {[%emt 0:00:54]} 22. Bc5 {[%emt 0:00:37]} Bh6 {[%emt 0:00:20]} 23. Bxe7 {[%emt 0:02:36]} Rxe7 {[%emt 0:00:06]} 24. Qxd5 {[%emt 0:00:08]} Re2 {[%emt 0:01:03]} 25. Qxb7 {[%emt 0:01:36]} Rae8 {[%emt 0:06:55]} 26. Rd1 {[%emt 0:06:20]} h4 {[%emt 0:00:27]} 27. Rf1 {[%emt 0:11:29]} Bf4 {[%emt 0:02:47]} 28. a4 {[%emt 0:04:01]} Re1 {[%emt 0:02:22]} 29. Qb5 {[%emt 0:12:10]} R8e7 {[%emt 0:04:41]} 30. Qd3 {[%emt 0:01:38]} R7e2 {[%emt 0:03:14]} 31. Qf3 {[%emt 0:04:07]} g5 {[%emt 0:02:26]} 32. b4 {[%emt 0:02:04]} Bd2 {[%emt 0:04:16]} 33. Rxe1 {[%emt 0:01:29]} Rxe1+ {[%emt 0:00:08]} 34. Kh2 {[%emt 0:00:05]} Rc1 {[%emt 0:00:54]} 35. Qd3 {[%emt 0:01:33]} Bxc3 {[%emt 0:01:37]} 36. Qe3 {[%emt 0:00:44]} Rc2 {[%emt 0:01:21]} 37. Qxg5+ {[%emt 0:00:11]} Kf8 {[%emt 0:00:14]} 38. Qf5 {[%emt 0:00:55]} Rc1 {[%emt 0:01:26]} 39. Qc5+ {[%emt 0:00:38]} Ke8 {[%emt 0:00:24]} 40. b5 {[%emt 0:00:00]} Bd2 {[%emt 0:00:00]} 41. Qe5+ {[%emt 0:02:40]} 1-0

[Event "World Senior chT-50 2019"]
[Site "Rhodes"]
[Date "2019.04.24"]
[Round "9.23"]
[White "Neave, George"]
[Black "Hrisanthopoulos, Dimitrios"]
[Result "1/2-1/2"]
[ECO "B48"]
[WhiteElo "2101"]
[BlackElo "1995"]
[Annotator "NA"]
[PlyCount "27"]
[EventDate "2019.04.16"]
[EventType "team-tourn"]
[EventCountry "GRE"]
[SourceTitle "playchess.com"]
[Source "ChessBase"]
[SourceQuality "1"]
[WhiteTeam "Scotland"]
[BlackTeam "Greece"]
[WhiteTeamCountry "SCO"]
[BlackTeamCountry "GRE"]
[TimeControl "40/5400+30:1800+30"]

1. e4 {[%emt 0:00:00]} c5 {[%emt 0:00:00]} 2. Nf3 {[%emt 0:00:07]} e6 {[%emt 0:00:00]} 3. d4 {[%emt 0:00:15]} cxd4 {[%emt 0:00:00]} 4. Nxd4 {[%emt 0:00:06]} Nc6 {[%emt 0:00:06]} 5. Nc3 {[%emt 0:00:08]} Qc7 {[%emt 0:00:17]} 6. Be3 {[%emt 0:00:09]} a6 {[%emt 0:00:12]} 7. Qd2 {[%emt 0:00:04]} Nf6 {[%emt 0:01:04]} 8. O-O-O {[%emt 0:00:11]} Be7 {[%emt 0:02:19]} 9. f3 {[%emt 0:00:57]} b5 {[%emt 0:01:08]} 10. g4 {[%emt 0:02:22]} O-O {[%emt 0:00:33]} 11. g5 {[%emt 0:00:18]} Nh5 {[%emt 0:00:36]} 12. Nce2 {[%emt 0:03:28]} Nxd4 {[%emt 0:03:52]} 13. Nxd4 {[%emt 0:06:22]} Bb7 {[%emt 0:02:45]} 14. Be2 {[%emt 0:03:48]} 1/2-1/2

[Event "World Senior chT-50 2019"]
[Site "Rhodes"]
[Date "2019.04.24"]
[Round "9.24"]
[White "Papadimitriou, Loukas"]
[Black "Smith, Peter R"]
[Result "0-1"]
[ECO "A59"]
[WhiteElo "1943"]
[BlackElo "2038"]
[Annotator "NA"]
[PlyCount "80"]
[EventDate "2019.04.16"]
[EventType "team-tourn"]
[EventCountry "GRE"]
[SourceTitle "playchess.com"]
[Source "ChessBase"]
[SourceQuality "1"]
[WhiteTeam "Greece"]
[BlackTeam "Scotland"]
[WhiteTeamCountry "GRE"]
[BlackTeamCountry "SCO"]
[TimeControl "40/5400+30:1800+30"]

1. d4 {[%emt 0:00:00]} Nf6 {[%emt 0:00:00]} 2. c4 {[%emt 0:00:00]} c5 {[%emt 0:00:00]} 3. d5 {[%emt 0:00:00]} b5 {[%emt 0:00:00]} 4. cxb5 {[%emt 0:00:00]} a6 {[%emt 0:00:00]} 5. bxa6 {[%emt 0:00:15]} Bxa6 {[%emt 0:00:05]} 6. Nc3 {[%emt 0:01:04]} g6 {[%emt 0:00:09]} 7. e4 {[%emt 0:00:19]} Bxf1 {[%emt 0:00:07]} 8. Kxf1 {[%emt 0:00:03]} d6 {[%emt 0:00:12]} 9. g3 {[%emt 0:00:17]} Bg7 {[%emt 0:00:04]} 10. Kg2 {[%emt 0:00:03]} O-O {[%emt 0:00:13]} 11. Nf3 {[%emt 0:00:19]} Nbd7 {[%emt 0:00:04]} 12. a4 {[%emt 0:02:05]} Qa5 {[%emt 0:00:36]} 13. Qc2 {[%emt 0:00:08]} Rfb8 {[%emt 0:00:30]} 14. Nb5 {[%emt 0:00:14]} Qb4 {[%emt 0:07:41]} 15. Nc3 {[%emt 0:04:31]} Ng4 {[%emt 0:02:01]} 16. Rd1 {[%emt 0:06:40]} Nge5 {[%emt 0:01:26]} 17. Ne1 {[%emt 0:08:28]} Nc4 {[%emt 0:03:19]} 18. Nd3 {[%emt 0:01:21]} Qb3 {[%emt 0:03:26]} 19. Qe2 {[%emt 0:05:56]} Nde5 {[%emt 0:07:11]} 20. Bg5 {[%emt 0:05:07]} Nxd3 {[%emt 0:03:19]} 21. Rxd3 {[%emt 0:00:08]} Nxb2 {[%emt 0:02:35]} 22. Rb1 {[%emt 0:02:26]} Bxc3 {[%emt 0:02:36]} 23. Bxe7 {[%emt 0:00:49]} Qc4 {[%emt 0:03:24]} 24. Re3 {[%emt 0:00:04]} Qxe2 {[%emt 0:02:25]} 25. Rxe2 {[%emt 0:00:04]} Ra6 {[%emt 0:03:22]} 26. f4 {[%emt 0:04:42]} Re8 {[%emt 0:04:32]} 27. Bg5 {[%emt 0:02:09]} Nxa4 {[%emt 0:02:51]} 28. Rb7 {[%emt 0:00:12]} Nb6 {[%emt 0:04:12]} 29. Kf3 {[%emt 0:01:10]} Bd4 {[%emt 0:01:37]} 30. Be7 {[%emt 0:01:22]} Nc8 {[%emt 0:05:39]} 31. Bg5 {[%emt 0:00:14]} f6 {[%emt 0:00:54]} 32. Bh6 {[%emt 0:00:15]} Ra3+ {[%emt 0:02:46]} 33. Kg4 {[%emt 0:02:58]} f5+ {[%emt 0:02:07]} 34. Kg5 {[%emt 0:00:09]} fxe4 {[%emt 0:01:00]} 35. g4 {[%emt 0:00:42]} Ra7 {[%emt 0:02:03]} 36. Rxa7 {[%emt 0:02:30]} Nxa7 {[%emt 0:00:02]} 37. f5 {[%emt 0:00:09]} gxf5 {[%emt 0:02:52]} 38. gxf5 {[%emt 0:00:33]} Kf7 {[%emt 0:02:29]} 39. Kf4 {[%emt 0:00:10]} Nb5 {[%emt 0:02:08]} 40. Ra2 {[%emt 0:00:00]} e3 {[%emt 0:00:00]} 0-1

[Event "World Senior chT-50 2019"]
[Site "Rhodes"]
[Date "2019.04.24"]
[Round "9.26"]
[White "Ross, Paul"]
[Black "Frostick, Clive A"]
[Result "1/2-1/2"]
[ECO "E09"]
[WhiteElo "2237"]
[BlackElo "2121"]
[Annotator "NA"]
[PlyCount "74"]
[EventDate "2019.04.16"]
[EventType "team-tourn"]
[EventCountry "GRE"]
[SourceTitle "playchess.com"]
[Source "ChessBase"]
[SourceQuality "1"]
[WhiteTeam "Canada"]
[BlackTeam "England"]
[WhiteTeamCountry "CAN"]
[BlackTeamCountry "ENG"]
[TimeControl "40/5400+30:1800+30"]

1. d4 {[%emt 0:00:00]} d5 {[%emt 0:02:05]} 2. c4 {[%emt 0:00:22]} e6 {[%emt 0:00:26]} 3. Nf3 {[%emt 0:02:59]} Nf6 {[%emt 0:00:46]} 4. g3 {[%emt 0:01:05]} Bb4+ {[%emt 0:01:24]} 5. Bd2 {[%emt 0:03:20]} Be7 {[%emt 0:00:52]} 6. Bg2 {[%emt 0:01:38]} O-O {[%emt 0:00:48]} 7. O-O {[%emt 0:06:25]} c6 {[%emt 0:03:56]} 8. Qc2 {[%emt 0:01:31]} Nbd7 {[%emt 0:04:36]} 9. Bf4 {[%emt 0:01:06]} Nh5 {[%emt 0:09:22]} 10. Bc1 {[%emt 0:04:43]} Nhf6 {[%emt 0:18:02]} 11. Nbd2 {[%emt 0:05:38]} b6 {[%emt 0:03:59]} 12. e4 {[%emt 0:00:24]} dxe4 {[%emt 0:05:34]} 13. Nxe4 {[%emt 0:02:02]} Nxe4 {[%emt 0:01:19]} 14. Qxe4 {[%emt 0:00:08]} Bb7 {[%emt 0:00:19]} 15. Ne5 {[%emt 0:05:00]} Rc8 {[%emt 0:15:53]} 16. Bf4 {[%emt 0:09:11]} Nxe5 {[%emt 0:05:02]} 17. Bxe5 {[%emt 0:02:15]} Bd6 {[%emt 0:04:29]} 18. Qf4 {[%emt 0:05:33]} Bxe5 {[%emt 0:03:44]} 19. dxe5 {[%emt 0:00:06]} Qe7 {[%emt 0:04:36]} 20. Rad1 {[%emt 0:02:17]} c5 {[%emt 0:01:26]} 21. Rd6 {[%emt 0:01:55]} Rfd8 {[%emt 0:01:51]} 22. Rfd1 {[%emt 0:00:25]} Bxg2 {[%emt 0:00:52]} 23. Kxg2 {[%emt 0:01:23]} h6 {[%emt 0:06:23]} 24. Qd2 {[%emt 0:00:17]} Rxd6 {[%emt 0:00:11]} 25. exd6 {[%emt 0:00:06]} Qb7+ {[%emt 0:00:47]} 26. f3 {[%emt 0:00:29]} Rd8 {[%emt 0:00:13]} 27. Qd3 {[%emt 0:06:05]} Rd7 {[%emt 0:00:56]} 28. b3 {[%emt 0:00:59]} Qc6 {[%emt 0:00:28]} 29. h4 {[%emt 0:00:16]} f6 {[%emt 0:03:06]} 30. a3 {[%emt 0:00:25]} a5 {[%emt 0:00:13]} 31. g4 {[%emt 0:00:57]} Kf7 {[%emt 0:00:25]} 32. Kg3 {[%emt 0:01:37]} e5 {[%emt 0:00:49]} 33. Rd2 {[%emt 0:11:18]} Ke6 {[%emt 0:00:22]} 34. Qf5+ {[%emt 0:05:59]} Kf7 {[%emt 0:00:02]} 35. Qd3 {[%emt 0:06:19]} Ke6 {[%emt 0:00:02]} 36. Qh7 {[%emt 0:04:53]} Kf7 {[%emt 0:00:31]} 37. Qd3 {[%emt 0:06:10]} Ke6 {[%emt 0:00:31]} 1/2-1/2

[Event "World Senior chT-50 2019"]
[Site "Rhodes"]
[Date "2019.04.24"]
[Round "9.27"]
[White "Jackson, Sheila"]
[Black "Barron, Michael"]
[Result "1/2-1/2"]
[ECO "C77"]
[WhiteElo "2051"]
[BlackElo "2124"]
[Annotator "NA"]
[PlyCount "109"]
[EventDate "2019.04.16"]
[EventType "team-tourn"]
[EventCountry "GRE"]
[SourceTitle "playchess.com"]
[Source "ChessBase"]
[SourceQuality "1"]
[WhiteTeam "England"]
[BlackTeam "Canada"]
[WhiteTeamCountry "ENG"]
[BlackTeamCountry "CAN"]
[TimeControl "40/5400+30:1800+30"]

1. e4 {[%emt 12:12:43]} e5 2. Nf3 {[%emt 0:00:06]} Nc6 {[%emt 0:00:03]} 3. Bb5 {[%emt 0:00:05]} a6 {[%emt 0:00:07]} 4. Ba4 {[%emt 0:00:06]} Nf6 {[%emt 0:00:01]} 5. O-O {[%emt 0:00:09]} Be7 {[%emt 0:00:01]} 6. d3 {[%emt 0:00:11]} b5 {[%emt 0:00:04]} 7. Bb3 {[%emt 0:00:04]} O-O {[%emt 0:00:07]} 8. Nc3 {[%emt 0:02:22]} d6 {[%emt 0:01:06]} 9. a3 {[%emt 0:00:09]} h6 {[%emt 0:00:06]} 10. h3 {[%emt 0:02:37]} Be6 {[%emt 0:00:03]} 11. Nd5 {[%emt 0:04:00]} Bxd5 {[%emt 0:00:03]} 12. exd5 {[%emt 0:03:48]} Nb8 {[%emt 0:01:04]} 13. Re1 {[%emt 0:04:33]} Nbd7 {[%emt 0:00:09]} 14. d4 {[%emt 0:01:47]} e4 {[%emt 0:02:47]} 15. Nd2 {[%emt 0:00:31]} Nb6 {[%emt 0:00:03]} 16. Nxe4 {[%emt 0:01:05]} Nfxd5 {[%emt 0:00:02]} 17. Qh5 {[%emt 0:05:16]} Nf6 {[%emt 0:05:21]} 18. Nxf6+ {[%emt 0:08:08]} Bxf6 {[%emt 0:00:02]} 19. c3 {[%emt 0:02:02]} Bg5 {[%emt 0:00:03]} 20. Bxg5 {[%emt 0:09:26]} Qxg5 {[%emt 0:00:08]} 21. Qxg5 {[%emt 0:00:59]} hxg5 {[%emt 0:00:01]} 22. Re7 {[%emt 0:06:11]} Rac8 {[%emt 0:04:27]} 23. Rae1 {[%emt 0:02:25]} Nc4 {[%emt 0:00:08]} 24. R1e2 {[%emt 0:05:28]} Rfd8 {[%emt 0:00:30]} 25. Bc2 {[%emt 0:10:19]} g6 {[%emt 0:01:50]} 26. Bd3 {[%emt 0:12:55]} Nb6 {[%emt 0:05:43]} 27. Be4 {[%emt 0:01:38]} d5 {[%emt 0:00:04]} 28. Bf3 {[%emt 0:00:27]} Kf8 {[%emt 0:00:37]} 29. R7e5 {[%emt 0:01:00]} Re8 {[%emt 0:01:15]} 30. Rxe8+ {[%emt 0:06:08]} Rxe8 {[%emt 0:00:02]} 31. Rxe8+ {[%emt 0:01:16]} Kxe8 {[%emt 0:00:01]} 32. b3 {[%emt 0:00:21]} Kd7 {[%emt 0:01:17]} 33. Kf1 {[%emt 0:00:23]} a5 {[%emt 0:04:25]} 34. Be2 {[%emt 0:01:56]} Kc6 {[%emt 0:01:11]} 35. Ke1 {[%emt 0:01:01]} Nc8 {[%emt 0:00:10]} 36. Kd2 {[%emt 0:03:03]} Nd6 {[%emt 0:00:02]} 37. Bd3 {[%emt 0:00:54]} Nc8 {[%emt 0:11:56]} 38. f3 {[%emt 0:00:57]} Nb6 {[%emt 0:00:06]} 39. g3 {[%emt 0:01:07]} a4 {[%emt 0:00:03]} 40. b4 {[%emt 0:01:19]} Nc8 {[%emt 0:00:35]} 41. Ke3 {[%emt 0:00:52]} Nd6 {[%emt 0:01:37]} 42. h4 {[%emt 0:05:35]} gxh4 {[%emt 0:00:06]} 43. gxh4 {[%emt 0:00:04]} Kd7 {[%emt 0:00:15]} 44. Kf4 {[%emt 0:04:02]} Ke6 {[%emt 0:00:02]} 45. Kg5 {[%emt 0:01:16]} c6 {[%emt 0:00:21]} 46. Bf1 {[%emt 0:03:12]} Ke7 {[%emt 0:00:18]} 47. Bd3 {[%emt 0:01:00]} Kf8 {[%emt 0:02:24]} 48. h5 {[%emt 0:03:26]} gxh5 {[%emt 0:01:16]} 49. Kxh5 Kg7 {[%emt 0:00:27]} 50. Kg5 {[%emt 0:00:15]} f6+ {[%emt 0:00:54]} 51. Kh5 {[%emt 0:05:28]} Kf7 {[%emt 0:00:08]} 52. Kg4 {[%emt 0:00:25]} Ke6 {[%emt 0:00:04]} 53. Kf4 {[%emt 0:00:17]} Nf7 {[%emt 0:00:03]} 54. Bf5+ {[%emt 0:00:53]} Ke7 {[%emt 0:00:08]} 55. Bh3 {[%emt 0:02:30]} 1/2-1/2

[Event "World Senior chT-50 2019"]
[Site "Rhodes"]
[Date "2019.04.24"]
[Round "9.28"]
[White "Chernik, Dmitry"]
[Black "Homer, Stephen J"]
[Result "1/2-1/2"]
[ECO "B23"]
[WhiteElo "1868"]
[BlackElo "2039"]
[Annotator "NA RC"]
[PlyCount "158"]
[EventDate "2019.04.16"]
[EventType "team-tourn"]
[EventCountry "GRE"]
[SourceTitle "playchess.com"]
[Source "ChessBase"]
[SourceQuality "1"]
[WhiteTeam "Canada"]
[BlackTeam "England"]
[WhiteTeamCountry "CAN"]
[BlackTeamCountry "ENG"]
[TimeControl "40/5400+30:1800+30"]

1. e4 {[%emt 0:00:00]} c5 {[%emt 0:00:00]} 2. Nc3 {[%emt 0:00:00]} Nc6 {[%emt 0:00:00]} 3. f4 {[%emt 0:00:42]} g6 {[%emt 0:00:00]} 4. Bb5 {[%emt 0:00:11]} Nd4 {[%emt 0:00:00]} 5. Nf3 {[%emt 0:00:06]} a6 {[%emt 0:00:06]} 6. Bc4 {[%emt 0:01:57] B23: Closed Sicilian: Lines without g3} Bg7 {[%emt 0:00:30]} 7. d3 {[%emt 0:00:43]} (7. Nxd4 cxd4 8. Ne2 d5 9. exd5 b5 10. Bb3 Bb7 11. O-O Qb6 12. d3 f5 13. Kh1 a5 {½-½ (32) Zeng,C (2541)-Lu,S (2570) China 2015}) 7... b5 {[%emt 0:00:26]} 8. Bd5 {[%emt 0:00:03]} Rb8 {[%emt 0:00:03]} 9. Nxd4 {[%emt 0:00:29]} cxd4 {[%emt 0:00:05]} 10. Ne2 {[%emt 0:00:16]} e6 {[%emt 0:09:30]} 11. Bb3 {[%emt 0:00:13]} Qh4+ $146 {[%emt 0:05:18]} ({Predecessor:} 11... Ne7 12. O-O O-O 13. Qe1 Bb7 14. Bd2 d6 15. Ba5 Qd7 {1-0 (37) Kladiva,I (2265)-Kulcsar,M Hungary 1992}) 12. Ng3 {[%emt 0:06:29]} Nh6 {[%emt 0:03:02]} 13. Qf3 {[%emt 0:00:15]} Bb7 {[%emt 0:01:02]} 14. Bd2 {[%emt 0:01:50]} O-O {[%emt 0:01:13]} 15. O-O {[%emt 0:06:23]} f5 {[%emt 0:03:36]} 16. Bb4 {[%emt 0:03:56]} Rf7 {[%emt 0:01:46]} 17. h3 {[%emt 0:06:33]} fxe4 {[%emt 0:08:15]} 18. dxe4 {[%emt 0:04:24]} Nf5 {[%emt 0:12:58]} 19. Be1 {[%emt 0:09:21]} Qe7 {[%emt 0:04:47]} 20. Bf2 {[%emt 0:03:18]} Rbf8 {[%emt 0:14:32]} 21. Qd3 {[%emt 0:01:04]} Nxg3 {[%emt 0:00:16]} 22. Bxg3 {[%emt 0:00:04]} Qc5 {[%emt 0:00:47]} 23. Kh2 {[%emt 0:05:01]} Qc6 {[%emt 0:04:29]} 24. Rf2 {[%emt 0:02:44]} Qxe4 {[%emt 0:02:10]} 25. Qxe4 {[%emt 0:06:45]} Bxe4 {[%emt 0:00:02]} 26. Re2 {[%emt 0:00:12]} Bc6 {[%emt 0:03:57]} 27. Rae1 {[%emt 0:04:41]} Rf5 {[%emt 0:02:00]} 28. Rd1 {[%emt 0:03:36]} a5 {[%emt 0:01:14]} 29. a3 {[%emt 0:00:38]} Bd5 {[%emt 0:02:23]} 30. Bxd5 {[%emt 0:02:53]} Rxd5 {[%emt 0:00:01]} 31. Be1 {[%emt 0:01:28]} Rxf4 {[%emt 0:01:44]} 32. Bxa5 {[%emt 0:01:29]} Rdf5 {[%emt 0:06:24]} 33. c3 {[%emt 0:04:03]} Rd5 {[%emt 0:05:46]} 34. Red2 {[%emt 0:04:26]} Kf7 {[%emt 0:00:01]} 35. g3 {[%emt 0:05:25]} Re4 {[%emt 0:02:07]} 36. Kg2 {[%emt 0:00:15]} dxc3 {[%emt 0:02:17]} 37. Rxd5 {[%emt 0:01:01]} exd5 {[%emt 0:00:07]} 38. bxc3 {[%emt 0:01:12]} d4 {[%emt 0:00:52]} 39. cxd4 {[%emt 0:00:49]} Rxd4 {[%emt 0:02:34]} 40. Re1 {[%emt 0:00:00]} Ra4 {[%emt 0:00:00]} 41. Bb4 {[%emt 0:01:06]} Bf6 {[%emt 0:02:06]} 42. g4 {[%emt 0:04:03]} Ra6 {[%emt 0:03:33]} 43. g5 {[%emt 0:01:58]} Bxg5 {[%emt 0:00:43]} 44. Re5 {[%emt 0:00:22]} Bc1 {[%emt 0:01:55]} 45. Re7+ {[%emt 0:00:52]} Kf6 {[%emt 0:00:01]} 46. Rxd7 {[%emt 0:00:15]} Bxa3 {[%emt 0:00:50]} 47. Bc3+ {[%emt 0:00:17]} Ke6 {[%emt 0:01:50]} 48. Rb7 {[%emt 0:00:16]} Rc6 {[%emt 0:00:02]} 49. Ba5 {[%emt 0:02:17]} Rc5 {[%emt 0:01:56]} 50. Kf3 {[%emt 0:05:18]} h5 {[%emt 0:00:56]} 51. Rb6+ {[%emt 0:01:16]} Kf5 {[%emt 0:00:13]} 52. Rb8 {[%emt 0:00:24]} Rd5 {[%emt 0:00:37]} 53. Ke2 {[%emt 0:04:00]} g5 {[%emt 0:04:37]} 54. Kf3 $2 {[%emt 0:05:47]} (54. Bd2) 54... g4+ {[%emt 0:00:17]} 55. hxg4+ {[%emt 0:00:45]} hxg4+ {[%emt 0:00:01]} 56. Kg2 {[%emt 0:00:11]} Re5 {[%emt 0:03:46]} 57. Rb7 $2 {[%emt 0:02:08]} (57. Bc3) 57... Re2+ {[%emt 0:00:22]} 58. Kf1 {[%emt 0:00:21]} Rb2 {[%emt 0:00:09]} 59. Rf7+ {[%emt 0:01:05]} Ke4 {[%emt 0:00:51]} 60. Rg7 {[%emt 0:00:25]} Kf3 {[%emt 0:00:47]} 61. Rf7+ {[%emt 0:00:56]} Ke3 {[%emt 0:00:34]} 62. Rg7 {[%emt 0:00:30]} Rf2+ {[%emt 0:02:04]} 63. Kg1 {[%emt 0:01:08]} Rf4 {[%emt 0:01:02]} 64. Kg2 {[%emt 0:02:25]} (64. Rb7 {is the only way for White.} Rf5 65. Kg2) 64... Bc5 {[%emt 0:01:15]} 65. Kg3 {[%emt 0:03:53]} Ra4 {[%emt 0:00:27]} 66. Be1 {[%emt 0:00:40]} Bd6+ {[%emt 0:00:14]} (66... Ke2 $142 67. Ba5 Bd6+ 68. Kg2 Rxa5) 67. Kh4 {[%emt 0:01:12]} g3+ {[%emt 0:01:01]} 68. Kh3 {[%emt 0:00:04]} Ra3 {[%emt 0:01:11]} 69. Rb7 {[%emt 0:01:27]} Ke2 {[%emt 0:00:25]} 70. Rb6 {[%emt 0:00:51]} Bf4 {[%emt 0:02:33]} 71. Bb4 {[%emt 0:02:43] [#]} Rf3 {[%emt 0:01:46]} (71... g2+ $142 $1 72. Kg4 (72. Kxg2 Rg3+) 72... g1=Q+ {[%mdl 64] Double Attack} 73. Kf5 Qg5+ 74. Ke6 Qe5+ 75. Kd7 Ra7+ 76. Rb7 Rxb7+ 77. Kc6 Qe4+ {[%mdl 64] Double Attack} 78. Kc5 Qc4#) 72. Rxb5 {[%emt 0:01:37] [#]} Kf1 $2 {[%emt 0:00:14]} (72... g2+ $1 {[%mdl 512] mates} 73. Kxg2 Rg3+ 74. Kh2 Rg5+ {[%mdl 64] Discovered Attack} 75. Kh3 Rxb5 76. Kg4 Rxb4 77. Kf5 Kf3 78. Kf6 Ke4 79. Ke7 Kf5 80. Kd7 Rb6 81. Ke8 Rb7 82. Kf8 Bd6+ 83. Kg8 Kg6 84. Kh8 Rb8#) 73. Bc5 $1 {[%emt 0:00:21]} g2+ {[%emt 0:00:53]} 74. Kg4 $11 {[%emt 0:01:05]} Rc3 {[%emt 0:03:32]} 75. Kxf4 {[%emt 0:00:38]} Rc4+ {[%emt 0:00:02]} 76. Kf3 {[%emt 0:00:33]} Rc3+ {[%emt 0:00:14]} 77. Kf4 {[%emt 0:00:09]} Rxc5 {[%emt 0:00:31]} 78. Rxc5 {[%emt 0:00:48]} g1=Q {[%emt 0:00:14]} 79. Rc1+ {[%emt 0:00:09]} Kg2 {[%emt 0:00:03]} 1/2-1/2

[Event "World Senior chT-50 2019"]
[Site "Rhodes"]
[Date "2019.04.24"]
[Round "9.33"]
[White "Priedite, Ingrida"]
[Black "Genta, Alejandro"]
[Result "1/2-1/2"]
[ECO "E06"]
[WhiteElo "2044"]
[BlackElo "2054"]
[Annotator "NA"]
[PlyCount "64"]
[EventDate "2019.04.16"]
[EventType "team-tourn"]
[EventCountry "GRE"]
[SourceTitle "playchess.com"]
[Source "ChessBase"]
[SourceQuality "1"]
[WhiteTeam "Latvia"]
[BlackTeam "Uruguay"]
[WhiteTeamCountry "LAT"]
[BlackTeamCountry "URU"]
[TimeControl "40/5400+30:1800+30"]

1. c4 {[%emt 0:00:00]} Nf6 {[%emt 0:01:00]} 2. Nc3 {[%emt 0:00:00]} e6 {[%emt 0:00:10]} 3. g3 {[%emt 0:01:35]} d5 {[%emt 0:00:13]} 4. d4 {[%emt 0:04:11]} Be7 {[%emt 0:09:21]} 5. Nf3 {[%emt 0:02:09]} O-O {[%emt 0:01:20]} 6. Bg2 {[%emt 0:01:22]} dxc4 {[%emt 0:00:16]} 7. Qa4 {[%emt 0:02:09]} a6 {[%emt 0:00:21]} 8. Qxc4 {[%emt 0:00:22]} b5 {[%emt 0:00:05]} 9. Qd3 {[%emt 0:04:36]} Bb7 {[%emt 0:00:11]} 10. Bg5 {[%emt 0:12:57]} Nbd7 {[%emt 0:02:06]} 11. O-O {[%emt 0:04:49]} c5 {[%emt 0:12:00]} 12. dxc5 {[%emt 0:09:38]} Nxc5 {[%emt 0:01:39]} 13. Qxd8 {[%emt 0:03:40]} Rfxd8 {[%emt 0:00:11]} 14. b4 {[%emt 0:02:44]} h6 {[%emt 0:33:54]} 15. Bxf6 {[%emt 0:08:36]} Bxf6 {[%emt 0:00:07]} 16. bxc5 {[%emt 0:00:06]} Bxc3 {[%emt 0:00:07]} 17. Rac1 {[%emt 0:00:08]} b4 {[%emt 0:00:09]} 18. Ne1 {[%emt 0:04:47]} Bxg2 {[%emt 0:03:24]} 19. Kxg2 {[%emt 0:00:07]} Rd2 {[%emt 0:00:09]} 20. Rc2 {[%emt 0:01:11]} Rxc2 {[%emt 0:00:35]} 21. Nxc2 {[%emt 0:00:09]} Rc8 {[%emt 0:00:05]} 22. Rb1 {[%emt 0:07:30]} Rxc5 {[%emt 0:05:49]} 23. Kf3 {[%emt 0:02:43]} Kf8 {[%emt 0:09:37]} 24. Ke3 {[%emt 0:08:47]} Rd5 {[%emt 0:10:03]} 25. a3 {[%emt 0:02:07]} a5 {[%emt 0:00:09]} 26. axb4 {[%emt 0:00:22]} axb4 {[%emt 0:00:08]} 27. Rb3 {[%emt 0:01:10]} f5 {[%emt 0:00:34]} 28. f4 {[%emt 0:01:53]} Ke8 {[%emt 0:02:45]} 29. h4 {[%emt 0:01:28]} e5 {[%emt 0:03:13]} 30. fxe5 {[%emt 0:01:40]} Rxe5+ {[%emt 0:00:05]} 31. Kf3 {[%emt 0:05:41]} h5 {[%emt 0:02:58]} 32. Nxb4 {[%emt 0:01:22]} Bxb4 {[%emt 0:00:28] Ke4 [%clk 00:05:40] Rxe4 [%clk 00:02:48]} 1/2-1/2